bitfinex/quotes_ETHUSD_20240729
["timestamp","ask_amount","ask_price","bid_price","bid_amount"]
[1722229681466,2.6519235,3354.9,3354.2,2.38502]
[1722229681632,2.38466,3354.8,3354.1,2.38513]
[1722229681958,3.15562885,3354.8,3354.1,2.38513]
[1722229682143,2.38471,3354.7,3354.1,2.38513]
[1722229682346,0.77096885,3354.8,3353.8,2.38534]
[1722229682652,2.38493,3354.4,3353.8,2.38534]
[1722229683010,0.55,3354.8,3353.6,2.38549]
[1722229683219,2.38508,3354.2,3353.6,2.38549]
[1722229683424,2.38507,3354.2,3353.6,2.38549]
[1722229684922,2.38518,3354.1,3353.5,2.38556]
[1722229685129,2.38522,3354.0,3353.3,2.3523]
[1722229685371,2.38522,3354.0,3353.4,2.38563]
[1722229685667,2.38532,3353.9,3353.2,2.862928]
[1722229685876,2.38523,3354.0,3353.1,2.38583]
[1722229686026,2.38542,3353.7,3353.1,2.38583]
[1722229686221,2.38542,3353.7,3353.0,2.484]
[1722229686222,2.3853,3353.9,3353.0,2.484]
[1722229686443,2.3853,3353.9,3353.0,4.86987]
[1722229686667,4.73525,3354.3,3353.0,4.86987]
[1722229686668,2.38523,3354.0,3353.0,2.970987]
[1722229686898,2.38511,3354.2,3353.4,2.38562]
[1722229687023,2.38516,3354.1,3353.5,2.38555]
[1722229687450,2.38521,3354.0,3353.3,2.38566]
[1722229687731,2.38521,3354.0,3353.4,2.38562]
[1722229688230,2.38529,3353.9,3353.2,2.9214347]
[1722229688581,2.38536,3353.8,3353.2,2.9214347]
[1722229688930,2.38536,3353.8,3353.2,0.5356747]
[1722229689243,2.3855,3353.6,3353.0,5.356877]
[1722229690457,2.3855,3353.6,3353.0,2.872877]
[1722229691245,2.38571,3353.3,3352.7,9.70613]
[1722229691454,2.38571,3353.3,3352.7,2.38613]
[1722229693639,2.38582,3353.2,3352.5,2.38627]
[1722229694045,2.38585,3353.1,3352.5,2.38627]
[1722229695064,4.77147,3353.3,3352.5,2.38627]
[1722229695265,2.38578,3353.2,3352.5,2.38627]
[1722229695461,2.38593,3353.0,3352.4,19.76]
[1722229695744,2.38592,3353.0,3352.4,2.38634]
[1722229696205,2.38582,3353.2,3352.5,2.38626]
[1722229696389,2.38572,3353.3,3352.6,2.3862]
[1722229696600,2.38578,3353.2,3352.6,2.3862]
[1722229697593,2.38585,3353.1,3352.4,2.38634]
[1722229698764,2.38593,3353.0,3352.4,2.38634]
[1722229700326,2.386,3352.9,3352.3,4.67581]
[1722229701069,2.38607,3352.8,3352.3,2.2894]
[1722229701423,2.38614,3352.7,3352.1,9.70656]
[1722229701583,2.38614,3352.7,3352.1,2.38656]
[1722229702106,2.386,3352.9,3352.1,2.38656]
[1722229702313,5.4967,3353.5,3352.2,2.38646]
[1722229702464,2.38593,3353.0,3352.3,2.3773]
[1722229703216,2.386,3352.9,3352.3,4.76371]
[1722229703513,2.38593,3353.0,3352.4,2.38632]
[1722229703722,2.38585,3353.1,3352.5,2.38627]
[1722229704511,2.38573,3353.3,3352.5,2.38627]
[1722229705089,2.38589,3353.1,3352.6,2.3862]
[1722229705415,2.38578,3353.2,3352.6,2.3862]
[1722229705572,2.38587,3353.1,3352.4,2.38629]
[1722229707036,2.38573,3353.3,3352.6,2.38616]
[1722229707622,2.38579,3353.2,3352.6,2.38616]
[1722229709806,2.38567,3353.4,3352.9,2.2523]
[1722229710515,2.38549,3353.6,3352.9,4.63827]
[1722229710733,2.38557,3353.5,3352.9,4.63827]
[1722229710934,2.38565,3353.4,3352.9,2.2523]
[1722229711518,2.3858,3353.2,3352.9,2.2523]
[1722229711698,2.3858,3353.2,3352.6,2.38617]
[1722229711699,2.3858,3353.2,3352.6,4.84187]
[1722229714240,2.3858,3353.2,3352.7,2.38613]
[1722229715857,2.3858,3353.2,3352.6,2.4557]
[1722229716023,2.3858,3353.2,3352.6,4.8419]
[1722229720961,2.38585,3353.1,3352.6,4.8419]
[1722229721967,2.38585,3353.1,3352.4,3.47729]
[1722229722167,2.38599,3352.9,3352.3,12.0344]
[1722229722333,2.38599,3352.9,3352.3,12.7664]
[1722229725433,2.38585,3353.1,3352.3,6.53736]
[1722229725631,2.38573,3353.3,3352.6,2.3862]
[1722229725632,2.38578,3353.2,3352.6,2.3862]
[1722229725863,2.38585,3353.1,3352.4,2.38629]
[1722229726170,2.38585,3353.1,3352.5,3.278628]
[1722229727266,2.38573,3353.3,3352.5,3.278578]
[1722229727665,2.38578,3353.2,3352.6,2.3862]
[1722229729042,2.38585,3353.1,3352.6,2.3862]
[1722229729244,2.38581,3353.2,3352.6,2.3862]
[1722229729474,2.38585,3353.1,3352.6,2.3862]
[1722229731752,4.70975,3353.4,3352.6,3.205354]
[1722229732054,4.70975,3353.4,3352.8,2.38604]
[1722229733545,2.38565,3353.4,3352.8,2.38604]
[1722229733777,2.38565,3353.4,3352.8,3.0542794]
[1722229734073,2.38565,3353.4,3352.8,5.3608794]
[1722229735043,2.38565,3353.4,3352.8,4.69264]
[1722229736479,2.3857,3353.3,3352.8,4.69264]
[1722229736779,2.3857,3353.3,3352.7,2.38609]
[1722229741882,2.38579,3353.2,3352.6,4.7723]
[1722229742047,2.38579,3353.2,3352.6,2.38614]
[1722229742876,4.68889,3353.2,3352.4,12.20492]
[1722229743079,1.668989,3353.1,3352.4,12.20492]
[1722229743492,2.38597,3353.0,3352.4,12.20492]
[1722229743994,4.77196,3353.0,3352.4,9.70632]
[1722229744192,1.091,3352.9,3352.4,7.32]
[1722229744401,3.47703,3352.9,3352.4,7.32]
[1722229745488,1.668989,3353.1,3352.4,9.7063]
[1722229745799,2.38593,3353.0,3352.4,9.7063]
[1722229746894,2.38593,3353.0,3352.5,2.38627]
[1722229748360,4.68891,3353.2,3352.5,2.38627]
[1722229748554,2.38585,3353.1,3352.5,2.38627]
[1722229749618,4.68891,3353.2,3352.5,2.38627]
[1722229749759,2.38592,3353.0,3352.4,7.32]
[1722229750755,2.38592,3353.0,3352.4,9.70633]
[1722229755183,2.38592,3353.0,3352.4,2.38633]
[1722229756895,3.47685,3353.1,3352.5,2.38621]
[1722229757098,2.38585,3353.1,3352.5,2.38621]
[1722229757396,2.38585,3353.1,3352.5,4.85551]
[1722229757997,2.38592,3353.0,3352.5,2.4693]
[1722229758237,2.38601,3352.9,3352.3,2.38636]
[1722229759746,3.47701,3352.9,3352.3,2.38636]
[1722229760018,2.38621,3352.6,3352.2,2.4693]
[1722229762116,2.38612,3352.8,3352.2,2.4693]
[1722229762323,2.38612,3352.8,3351.8,9.6716]
[1722229762324,2.38632,3352.5,3351.8,9.6716]
[1722229762548,4.02715,3352.7,3352.0,2.38663]
[1722229762835,2.38621,3352.6,3352.0,2.38663]
[1722229766660,2.38628,3352.5,3351.8,13.14931]
[1722229766821,2.38628,3352.5,3351.9,2.38669]
[1722229767017,3.47718,3352.7,3352.0,2.3866]
[1722229768025,2.38609,3352.8,3351.8,10.7626]
[1722229768260,2.38595,3353.0,3352.4,2.3863]
[1722229768463,3.47688,3353.1,3352.5,2.38626]
[1722229769829,2.38592,3353.0,3352.5,2.38626]
[1722229770029,2.38592,3353.0,3352.5,4.65146]
[1722229770640,2.3858,3353.2,3352.5,4.6514]
[1722229770842,2.3858,3353.2,3352.5,4.65147]
[1722229770843,1.091,3353.1,3352.5,4.65147]
[1722229771043,3.47685,3353.1,3352.5,4.65147]
[1722229771590,3.47685,3353.1,3352.6,2.38619]
[1722229779153,3.47685,3353.1,3352.5,2.2652]
[1722229779929,3.47685,3353.1,3352.5,4.65147]
[1722229780549,4.310046,3353.1,3352.5,4.65147]
[1722229780749,3.47699,3352.9,3352.3,4.74617]
[1722229780946,3.47699,3352.9,3352.4,2.38634]
[1722229782144,1.091,3352.9,3352.4,2.38634]
[1722229783761,3.5798,3352.9,3352.4,2.38634]
[1722229784265,5.9658,3352.9,3352.2,9.70645]
[1722229785767,2.38607,3352.8,3352.2,9.70645]
[1722229787871,2.38607,3352.8,3352.2,2.38645]
[1722229789169,1.091,3352.7,3352.0,4.699]
[1722229790805,2.38625,3352.6,3352.0,4.699]
[1722229792049,2.38625,3352.6,3352.0,4.69896]
[1722229792250,2.4888,3352.9,3352.0,4.69896]
[1722229792475,3.5798,3352.9,3352.0,4.69896]
[1722229792637,2.38612,3352.8,3352.2,2.38644]
[1722229792839,4.77225,3352.8,3352.2,2.38644]
[1722229793059,2.38612,3352.8,3352.2,2.38644]
[1722229794175,3.5798,3352.9,3352.0,2.3124]
[1722229794372,5.96579,3352.9,3352.3,2.38637]
[1722229795336,5.96579,3352.9,3352.1,0.96324]
[1722229795565,3.47699,3352.9,3352.1,0.96324]
[1722229795760,3.47699,3352.9,3352.2,2.38643]
[1722229796386,3.47699,3352.9,3352.2,3.1064678]
[1722229796683,3.47699,3352.9,3352.3,2.3864]
[1722229798792,1.091,3352.4,3351.9,7.32]
[1722229798990,5.86426,3352.0,3351.9,7.32]
[1722229799281,6.41426,3352.0,3351.9,7.32]
[1722229801586,2.4341,3352.1,3351.9,7.32]
[1722229801587,2.38649,3352.3,3351.9,7.32]
[1722229801890,3.4773,3352.5,3351.9,7.32]
[1722229802586,2.8262,3352.6,3352.0,2.38663]
[1722229802787,3.47707,3352.8,3352.1,2.38649]
[1722229802987,3.47707,3352.8,3352.2,2.38644]
[1722229803892,2.38615,3352.7,3352.0,2.38658]
[1722229804056,2.38615,3352.7,3352.0,3.096765]
[1722229804256,1.091,3352.6,3352.1,2.38655]
[1722229804463,3.47721,3352.6,3352.0,0.710185]
[1722229804764,2.38629,3352.5,3352.0,0.710185]
[1722229806499,2.38635,3352.4,3351.8,2.3286]
[1722229806677,3.47737,3352.4,3351.8,4.71536]
[1722229807197,3.47737,3352.4,3351.6,7.32]
[1722229807198,2.38683,3351.8,3351.6,7.32]
[1722229807398,3.47783,3351.8,3351.1,9.6915]
[1722229807699,3.47783,3351.8,3351.2,2.38715]
[1722229809368,3.47783,3351.8,3351.1,10.66065]
[1722229809600,3.47783,3351.8,3351.1,13.0479]
[1722229809916,2.38685,3351.7,3351.1,13.0479]
[1722229810195,2.38685,3351.7,3351.2,0.7141278]
[1722229812273,2.38685,3351.7,3351.1,12.07875]
[1722229812471,2.38692,3351.6,3351.1,9.6915]
[1722229812664,3.47783,3351.8,3351.1,12.07875]
[1722229813469,2.38683,3351.8,3351.1,12.07872]
[1722229813665,2.38683,3351.8,3351.3,2.38712]
[1722229813870,3.4053,3352.0,3351.2,1.207872]
[1722229813871,2.38686,3351.7,3351.2,1.207872]
[1722229814434,2.38675,3351.9,3351.2,3.595062]
[1722229814931,2.38677,3351.8,3351.2,3.595062]
[1722229815218,2.38677,3351.8,3351.2,1.207872]
[1722229815771,2.38677,3351.8,3351.1,7.32]
[1722229815772,2.38693,3351.6,3351.1,7.32]
[1722229817021,3.47793,3351.6,3351.1,7.32]
[1722229817568,3.47793,3351.6,3351.0,2.38734]
[1722229823631,3.47812,3351.4,3350.8,2.4867]
[1722229823940,3.825932,3351.4,3350.8,2.4867]
[1722229824089,3.825932,3351.4,3350.7,9.70754]
[1722229824090,2.38714,3351.3,3350.7,9.70754]
[1722229824289,2.38714,3351.3,3350.7,7.32]
[1722229826547,2.38721,3351.2,3350.7,7.32]
[1722229829647,5.86518,3351.4,3350.7,2.38756]
[1722229829950,5.86518,3351.4,3350.6,2.3876]
[1722229829951,2.38706,3351.4,3350.8,2.38748]
[1722229830245,2.38699,3351.5,3350.9,2.38741]
[1722229832174,2.38706,3351.4,3350.9,2.38741]
[1722229832845,2.38706,3351.4,3350.8,2.3618]
[1722229833226,2.38706,3351.4,3350.8,4.74926]
[1722229835520,1.091,3351.5,3350.9,2.3874]
[1722229835720,3.478,3351.5,3350.9,2.3874]
[1722229836963,2.38707,3351.4,3350.9,2.3874]
[1722229837260,2.38707,3351.4,3350.7,2.62626]
[1722229837614,1.091,3351.3,3350.7,2.62626]
[1722229837952,5.84944,3351.3,3350.7,2.62626]
[1722229838321,5.84944,3351.3,3350.7,2.3875]
[1722229839425,5.84944,3351.3,3350.7,4.77499]
[1722229839628,5.84944,3351.3,3350.8,2.38747]
[1722229844735,8.23664,3351.3,3350.6,2.38756]
[1722229844921,1.091,3351.1,3350.5,2.38768]
[1722229845120,1.091,3351.1,3350.3,9.647]
[1722229845121,5.86565,3351.1,3350.3,7.32]
[1722229845549,3.47831,3351.1,3350.4,2.38777]
[1722229846058,2.38734,3351.0,3350.4,2.38777]
[1722229846440,2.38734,3351.0,3350.5,2.3877]
[1722229846640,1.091,3351.1,3350.5,2.3877]
[1722229848269,4.75844,3351.3,3350.7,2.38755]
[1722229848465,2.38702,3351.5,3350.9,2.38741]
[1722229848677,2.38707,3351.4,3350.6,4.7146]
[1722229848960,2.38707,3351.4,3350.8,2.38747]
[1722229850174,1.091,3351.5,3350.8,2.38742]
[1722229850376,3.47799,3351.5,3350.9,2.38737]
[1722229850580,2.38707,3351.4,3350.7,2.8612308]
[1722229850777,2.38707,3351.4,3350.7,2.3875]
[1722229851074,2.38707,3351.4,3350.9,2.38741]
[1722229856978,1.091,3351.3,3350.9,2.38741]
[1722229859889,2.257,3351.6,3350.6,2.327]
[1722229860091,2.4136,3351.8,3351.5,2.38692]
[1722229860295,2.4136,3351.8,3351.3,2.38707]
[1722229860787,2.4136,3351.8,3351.4,2.38704]
[1722229860988,2.4136,3351.8,3351.3,2.38712]
[1722229861565,2.4136,3351.8,3351.4,2.38706]
[1722229861765,2.4136,3351.8,3351.5,2.38698]
[1722229861994,4.729,3352.7,3351.5,1.091]
[1722229862158,2.3428,3352.7,3352.3,2.38641]
[1722229862361,2.38592,3353.0,3352.3,2.38641]
[1722229862596,0.472872,3352.9,3352.4,2.38634]
[1722229862982,0.472872,3352.9,3352.5,2.38627]
[1722229863169,0.472872,3352.9,3352.3,2.38641]
[1722229863494,3.47692,3353.0,3352.2,2.38644]
[1722229863724,2.38601,3352.9,3352.2,2.38644]
[1722229863860,2.38606,3352.8,3352.2,2.38644]
[1722229864059,2.38618,3352.7,3351.9,2.38668]
[1722229864466,2.38618,3352.7,3352.0,2.38658]
[1722229864670,0.55,3352.6,3352.0,2.38658]
[1722229864896,0.55,3352.6,3352.1,2.38656]
[1722229865140,0.55,3352.6,3352.2,2.38648]
[1722229865424,4.72867,3353.1,3352.4,2.38633]
[1722229865425,1.091,3353.0,3352.4,2.38633]
[1722229865630,0.55,3352.9,3352.5,2.38627]
[1722229867417,0.5,3352.9,3352.5,2.38627]
[1722229867724,1.091,3353.0,3352.5,2.38627]
[1722229871930,1.091,3352.8,3352.5,2.38627]
[1722229872118,1.091,3353.0,3352.5,2.38627]
[1722229872424,1.091,3353.0,3352.6,2.3862]
[1722229873029,1.091,3353.0,3352.4,2.38629]
[1722229873191,1.091,3352.8,3352.3,2.38642]
[1722229873901,1.091,3352.6,3352.3,2.38642]
[1722229874723,1.091,3352.8,3352.3,2.38642]
[1722229876608,1.091,3352.6,3352.2,2.38649]
[1722229877216,1.091,3352.6,3352.1,9.70655]
[1722229877217,3.47721,3352.6,3352.1,7.32]
[1722229877417,1.091,3352.4,3352.1,7.32]
[1722229878619,1.091,3352.4,3352.2,3.52272727]
[1722229879502,2.38622,3352.6,3352.2,3.52272727]
[1722229879503,1.091,3352.6,3352.2,3.52272727]
[1722229879697,1.091,3352.6,3352.2,4.39972307]
[1722229879950,1.091,3352.6,3352.2,3.52272727]
[1722229880360,3.47722,3352.6,3352.2,3.52272727]
[1722229881644,1.091,3352.6,3352.2,3.52272727]
[1722229881849,1.091,3352.6,3352.2,5.90921727]
[1722229882056,1.091,3352.6,3352.2,3.52272727]
[1722229882718,4.76659,3352.9,3352.2,5.90920727]
[1722229882918,1.091,3352.7,3352.2,5.90920727]
[1722229883116,0.55,3352.6,3352.2,3.52272727]
[1722229883469,1.091,3352.5,3352.2,3.52272727]
[1722229883969,3.47729,3352.5,3352.2,3.52272727]
[1722229884558,1.091,3352.3,3352.2,3.52272727]
[1722229885246,3.47742,3352.3,3352.2,3.52272727]
[1722229885445,6.28782,3352.3,3352.2,3.52272727]
[1722229885860,3.9014,3352.3,3352.2,3.52272727]
[1722229886058,1.641,3352.3,3352.2,3.52272727]
[1722229886284,0.55,3352.3,3352.2,3.52272727]
[1722229886449,0.55,3352.4,3352.2,3.52272727]
[1722229887169,3.47742,3352.3,3352.2,3.52272727]
[1722229887529,4.02742,3352.3,3352.2,3.52272727]
[1722229888229,1.641,3352.3,3352.2,3.52272727]
[1722229889518,0.55,3352.3,3352.2,3.52272727]
[1722229889840,0.55,3352.4,3352.2,3.52272727]
[1722229892422,3.3514,3352.6,3352.2,3.52272727]
[1722229892753,1.091,3352.6,3352.2,3.52272727]
[1722229895339,3.4772,3352.6,3352.2,3.52272727]
[1722229895670,2.38628,3352.5,3352.2,3.52272727]
[1722229896281,1.091,3352.4,3352.2,3.52272727]
[1722229897348,3.47735,3352.4,3352.2,3.52272727]
[1722229897529,2.93642,3352.3,3352.2,3.52272727]
[1722229902727,5.32284,3352.3,3352.2,3.52272727]
[1722229902931,11.31166719,3352.3,3352.2,3.52272727]
[1722229913775,12.40266719,3352.3,3352.2,3.52272727]
[1722229915844,11.31166719,3352.3,3352.2,3.52272727]
[1722229916184,12.40266719,3352.3,3352.2,3.52272727]
[1722229916342,12.71494646,3352.3,3352.2,3.52272727]
[1722229919047,9.17674646,3352.3,3352.2,3.52272727]
[1722229919260,9.11253927,3352.3,3352.2,3.52272727]
[1722229923386,6.72611927,3352.3,3352.2,3.52272727]
[1722229925567,2.69869927,3352.3,3352.2,3.52272727]
[1722229925773,0.31227927,3352.3,3352.2,3.52272727]
[1722229926981,0.86227927,3352.3,3352.2,3.52272727]
[1722229928291,3.24869927,3352.3,3352.2,3.52272727]
[1722229929388,4.33969927,3352.3,3352.2,3.52272727]
[1722229930804,1.95327927,3352.3,3352.2,3.52272727]
[1722229932108,4.33969927,3352.3,3352.2,3.52272727]
[1722229933987,6.72611927,3352.3,3352.2,3.52272727]
[1722229934729,4.33969927,3352.3,3352.2,3.52272727]
[1722229939928,1.95327927,3352.3,3352.2,3.52272727]
[1722229940127,4.33969927,3352.3,3352.2,3.52272727]
[1722229940711,3.24869927,3352.3,3352.2,3.52272727]
[1722229942014,0.86227927,3352.3,3352.2,3.52272727]
[1722229942465,0.86227927,3352.3,3352.2,5.94062727]
[1722229943737,1.95327927,3352.3,3352.2,5.94062727]
[1722229943913,4.33969927,3352.3,3352.2,5.94062727]
[1722229947253,4.33969927,3352.3,3352.2,3.52272727]
[1722229955463,12.69500519,3352.3,3352.2,3.52272727]
[1722229962959,12.69500519,3352.3,3350.8,14.82743]
[1722229962960,2.3872,3351.2,3351.1,9.6646]
[1722229963147,3.4782,3351.2,3351.1,2.3446]
[1722229966749,2.3872,3351.2,3351.1,2.3446]
[1722229968487,3.4782,3351.2,3351.1,2.3446]
[1722229971283,1.091,3351.2,3351.1,2.3446]
[1722229972651,3.4782,3351.2,3351.1,2.3446]
[1722229981783,1.091,3351.2,3351.1,2.3446]
[1722229982052,3.47808,3351.4,3351.1,2.3446]
[1722229982373,0.55,3351.3,3351.1,2.3446]
[1722229984699,2.93714,3351.3,3351.1,2.3446]
[1722229986608,0.55,3351.3,3351.1,2.3446]
[1722229988273,1.091,3351.4,3351.1,2.3446]
[1722229988606,1.091,3351.4,3351.1,4.73187]
[1722229988906,1.091,3351.4,3351.1,2.3446]
[1722229990214,0.31230227,3351.8,3351.1,4.73183]
[1722229990215,2.38688,3351.7,3351.1,4.73183]
[1722229990378,7.02788,3351.7,3351.1,4.73183]
[1722229990780,1.091,3351.5,3351.1,4.73183]
[1722229991380,1.091,3351.5,3351.1,2.38723]
[1722229991580,4.641,3351.7,3351.2,4.6418]
[1722229991798,0.55,3351.7,3351.3,4.64171]
[1722229991976,0.55,3351.7,3351.3,2.2546]
[1722229992306,1.091,3351.6,3351.3,2.2546]
[1722229992512,0.55,3351.7,3351.3,2.71878]
[1722229993014,0.31230227,3351.8,3351.5,2.2546]
[1722229994879,1.091,3351.7,3351.5,2.2546]
[1722229995280,0.31230227,3351.8,3351.5,2.2546]
[1722229997413,1.091,3351.8,3351.5,2.2546]
[1722229999990,1.091,3352.0,3351.5,5.344455]
[1722230000826,1.091,3352.1,3351.7,2.4318]
[1722230005999,3.4776,3352.1,3351.7,2.4318]
[1722230006395,1.091,3351.9,3351.7,2.4318]
[1722230007434,1.091,3351.9,3351.3,2.38708]
[1722230007634,2.38677,3351.8,3351.2,2.38715]
[1722230008319,2.38677,3351.8,3351.1,2.4823]
[1722230008320,2.38695,3351.6,3351.1,2.4823]
[1722230009037,2.38695,3351.6,3351.1,4.86957]
[1722230009243,1.641,3351.7,3351.2,4.86949]
[1722230009244,0.55,3351.7,3351.2,4.86949]
[1722230009617,0.55,3351.7,3351.3,2.3871]
[1722230009819,2.38678,3351.8,3351.3,2.3871]
[1722230010946,2.38678,3351.8,3351.2,2.4823]
[1722230011131,2.38678,3351.8,3351.2,4.86949]
[1722230011549,3.47786,3351.7,3351.2,4.86949]
[1722230013944,3.47775,3351.9,3351.2,7.25664]
[1722230014139,0.55,3351.8,3351.3,2.3871]
[1722230015509,2.93678,3351.8,3351.2,2.4823]
[1722230019720,2.93678,3351.8,3351.2,4.86949]
[1722230022341,2.38684,3351.7,3351.2,2.4823]
[1722230022540,2.38692,3351.6,3351.0,9.6843]
[1722230022774,2.38692,3351.6,3351.1,2.38724]
[1722230023274,1.091,3351.7,3351.1,2.38724]
[1722230023978,3.47785,3351.7,3351.1,2.38724]
[1722230024155,3.47785,3351.7,3351.1,2.38721]
[1722230026056,3.47785,3351.7,3351.0,2.3643]
[1722230026057,4.354527,3351.7,3351.0,2.3643]
[1722230026381,2.38705,3351.5,3351.0,2.3643]
[1722230029639,4.354527,3351.7,3351.0,2.3643]
[1722230029858,0.55,3351.6,3351.1,2.38723]
[1722230030055,0.55,3351.6,3351.2,2.38719]
[1722230030443,1.091,3351.9,3351.5,2.4037]
[1722230030645,0.55,3351.8,3351.5,2.4037]
[1722230031084,0.55,3352.0,3351.5,2.4037]
[1722230031391,3.61842991,3352.0,3351.5,2.4037]
[1722230036779,1.091,3351.9,3351.5,2.4037]
[1722230037076,0.55,3351.8,3351.5,2.4037]
[1722230042355,2.69885907,3352.2,3351.6,2.38687]
[1722230042684,1.091,3352.0,3351.6,2.38687]
[1722230043774,0.55,3352.1,3351.7,2.38683]
[1722230047296,1.091,3352.0,3351.7,2.38683]
[1722230052405,1.091,3352.0,3351.6,2.38691]
[1722230058462,1.091,3352.0,3351.5,2.4037]
[1722230058783,3.47764,3352.0,3351.5,4.79068]
[1722230059190,1.091,3352.0,3351.5,7.17761]
[1722230059382,0.55,3352.1,3351.5,2.4037]
[1722230060605,0.55,3352.1,3351.6,2.38685]
[1722230063087,2.38663,3352.0,3351.5,2.4037]
[1722230063408,1.091,3352.0,3351.5,2.4037]
[1722230063809,3.47764,3352.0,3351.5,2.4037]
[1722230064709,2.38678,3351.8,3351.2,2.38717]
[1722230064876,2.38685,3351.7,3351.1,12.14371]
[1722230067105,2.38704,3351.5,3351.1,7.32]
[1722230069107,2.38706,3351.4,3351.1,7.32]
[1722230070278,3.47792,3351.6,3350.9,4.82386]
[1722230071512,2.38703,3351.5,3350.9,4.82386]
[1722230073585,3.47792,3351.6,3350.9,2.4365]
[1722230073586,2.38707,3351.4,3350.9,2.4365]
[1722230073781,2.38714,3351.3,3350.9,2.4365]
[1722230074611,2.38704,3351.5,3350.9,2.4365]
[1722230076810,2.38704,3351.5,3350.9,4.82391]
[1722230078710,2.38704,3351.5,3351.0,2.38734]
[1722230079329,2.38704,3351.5,3350.9,4.8239]
[1722230080720,2.38707,3351.4,3350.9,4.8239]
[1722230085490,5.90977,3351.6,3350.9,4.8239]
[1722230085693,2.38699,3351.5,3350.9,4.8239]
[1722230086623,2.38699,3351.5,3351.0,2.38734]
[1722230087522,2.38688,3351.7,3351.1,2.38726]
[1722230087821,2.93694,3351.6,3350.9,4.82385]
[1722230088716,0.55,3351.6,3350.9,2.4365]
[1722230089024,2.38699,3351.5,3351.0,2.38733]
[1722230091739,2.38699,3351.5,3350.8,2.38745]
[1722230092035,1.091,3351.2,3350.6,7.32]
[1722230092236,2.38732,3351.1,3350.6,7.32]
[1722230092461,2.38746,3350.9,3350.6,7.32]
[1722230095461,2.38732,3351.1,3350.6,7.32]
[1722230095462,4.77466,3351.1,3350.6,7.32]
[1722230095663,2.93735,3351.0,3350.6,7.32]
[1722230097218,2.93735,3351.0,3350.4,2.38776]
[1722230097824,0.55,3351.0,3350.5,2.38769]
[1722230098026,2.93729,3351.1,3350.5,2.38765]
[1722230098856,2.38735,3351.0,3350.3,8.25153]
[1722230099163,2.38746,3350.9,3350.3,4.77269]
[1722230100054,4.70535,3351.0,3350.4,2.38775]
[1722230102139,2.38741,3350.9,3350.3,2.3849]
[1722230102334,2.38741,3350.9,3350.3,4.77269]
[1722230104229,2.318,3351.0,3350.5,2.38766]
[1722230104839,4.70535,3351.0,3350.3,4.77269]
[1722230105241,2.318,3351.0,3350.5,2.38766]
[1722230105958,4.70537,3351.0,3350.3,3.4759]
[1722230106166,4.70537,3351.0,3350.4,2.38773]
[1722230106962,2.318,3351.0,3350.4,2.38773]
[1722230107163,0.55,3351.1,3350.6,2.38762]
[1722230107368,0.55,3351.1,3350.7,4.67611]
[1722230107573,0.55,3351.2,3350.7,4.67611]
[1722230107793,2.312,3351.7,3350.7,4.195073]
[1722230107935,2.312,3351.7,3350.2,7.32]
[1722230107936,2.312,3351.9,3351.4,2.38704]
[1722230108129,2.38659,3352.1,3351.3,2.38712]
[1722230108446,3.07305703,3352.1,3351.5,2.38694]
[1722230108647,3.47768,3352.0,3351.4,2.38705]
[1722230109066,2.38673,3351.9,3351.3,2.38712]
[1722230109252,2.38673,3351.9,3351.1,9.70727]
[1722230109253,2.38689,3351.7,3351.1,7.32]
[1722230109431,1.091,3351.6,3351.1,7.32]
[1722230109631,2.281769,3351.6,3351.1,7.32]
[1722230110263,2.38704,3351.5,3351.1,7.32]
[1722230110470,4.76691,3351.4,3351.1,7.32]
[1722230110762,2.3798,3351.4,3350.9,2.38735]
[1722230111139,4.76686,3351.4,3350.9,2.38735]
[1722230111667,4.76686,3351.4,3350.7,14.8275]
[1722230112667,4.76686,3351.4,3350.8,2.38747]
[1722230113472,2.3798,3351.4,3350.8,2.38743]
[1722230113673,8.7072,3351.6,3350.9,2.38741]
[1722230113874,6.32022,3351.6,3350.9,2.38741]
[1722230114472,2.8423,3351.6,3351.1,2.38727]
[1722230114767,3.06596703,3352.1,3351.1,2.38727]
[1722230114939,2.38671,3351.9,3351.3,2.38708]
[1722230116483,0.55,3352.0,3351.3,2.38711]
[1722230116684,3.47757,3352.1,3351.5,2.38696]
[1722230117656,3.47757,3352.1,3351.5,4.69146]
[1722230118459,3.47757,3352.1,3351.5,2.38696]
[1722230119575,3.47757,3352.1,3351.3,2.38711]
[1722230119576,2.38664,3352.0,3351.3,2.38708]
[1722230119781,2.38664,3352.0,3351.4,2.38706]
[1722230122490,2.38656,3352.2,3351.5,2.38699]
[1722230122656,0.55,3352.1,3351.5,2.38699]
[1722230122857,2.93656,3352.1,3351.5,2.38699]
[1722230123076,0.55,3352.1,3351.5,2.38699]
[1722230123278,0.55,3352.1,3351.6,2.38691]
[1722230127190,1.091,3352.2,3351.7,2.38684]
[1722230127997,3.47749,3352.2,3351.7,2.38684]
[1722230128672,1.091,3352.2,3351.7,2.38684]
[1722230129257,5.13447514,3352.4,3351.7,2.38684]
[1722230129469,1.641,3352.3,3351.8,2.38677]
[1722230130392,4.02742,3352.3,3351.6,7.05327]
[1722230130698,4.02742,3352.3,3351.7,2.38684]
[1722230131899,0.31239514,3352.4,3352.0,2.38663]